[Event "Titled Tuesday Blitz August 08 Early 2023"]
[White "Sagita, Catur Adi"]
[Black "Mammadzada, Gunay"]
[WhiteFideId "7104618"]
[BlackFideId "13403729"]
[WhiteElo "2650"]
[BlackElo "2460"]
[Result "1/2-1/2"]
[Round "3"]
[TimeControl "180+1"]
[Date "2023.08.08"]
[WhiteClock "0:00:06"]
[BlackClock "0:00:05"]
[Board "115"]

1. e4 {[%clk 0:03:00]}  c5 {[%clk 0:02:55]} 2. Nf3 {[%clk 0:02:57]}  d6 {[%clk 0:02:55]} 3. d4 {[%clk 0:02:57]}  cxd4 {[%clk 0:02:55]} 4. Nxd4 {[%clk 0:02:58]}  e6 {[%clk 0:02:54]} 5. Nc3 {[%clk 0:02:57]}  a6 {[%clk 0:02:51]} 6. g4 {[%clk 0:02:55]}  b5 {[%clk 0:02:50]} 7. Bg2 {[%clk 0:02:55]}  Bb7 {[%clk 0:02:50]} 8. O-O {[%clk 0:02:53]}  Ne7 {[%clk 0:02:44]} 9. Be3 {[%clk 0:02:52]}  Ng6 {[%clk 0:02:43]} 10. f4 {[%clk 0:02:51]}  Nh4 {[%clk 0:02:39]} 11. Bh1 {[%clk 0:02:51]}  Be7 {[%clk 0:02:39]} 12. a3 {[%clk 0:02:47]}  O-O {[%clk 0:02:38]} 13. Qd2 {[%clk 0:02:47]}  Nd7 {[%clk 0:02:38]} 14. Rae1 {[%clk 0:02:45]}  Nb6 {[%clk 0:02:37]} 15. Qf2 {[%clk 0:02:43]}  Nc4 {[%clk 0:02:35]} 16. Bc1 {[%clk 0:02:44]}  Rc8 {[%clk 0:02:21]} 17. g5 {[%clk 0:02:44]}  Qb6 {[%clk 0:02:11]} 18. Nce2 {[%clk 0:02:35]}  e5 {[%clk 0:02:06]} 19. Nf5 {[%clk 0:02:15]}  Nxf5 {[%clk 0:02:03]} 20. Qxb6 {[%clk 0:02:14]}  Nxb6 {[%clk 0:02:03]} 21. exf5 {[%clk 0:02:15]}  Bxh1 {[%clk 0:02:02]} 22. Kxh1 {[%clk 0:02:16]}  Rxc2 {[%clk 0:01:59]} 23. Nc3 {[%clk 0:02:10]}  f6 {[%clk 0:01:54]} 24. gxf6 {[%clk 0:02:06]}  gxf6 {[%clk 0:01:21]} 25. fxe5 {[%clk 0:01:53]}  dxe5 {[%clk 0:01:19]} 26. Bh6 {[%clk 0:01:54]}  Rf7 {[%clk 0:01:15]} 27. Re2 {[%clk 0:01:13]}  Rxe2 {[%clk 0:01:10]} 28. Nxe2 {[%clk 0:01:14]}  Bf8 {[%clk 0:01:09]} 29. Bc1 {[%clk 0:01:05]}  Rc7 {[%clk 0:00:59]} 30. Nc3 {[%clk 0:01:04]}  Bxa3 {[%clk 0:00:55]} 31. Rg1+ {[%clk 0:01:04]}  Kf7 {[%clk 0:00:51]} 32. bxa3 {[%clk 0:00:50]}  Rxc3 {[%clk 0:00:50]} 33. Bh6 {[%clk 0:00:50]}  Rxa3 {[%clk 0:00:28]} 34. Rg7+ {[%clk 0:00:49]}  Ke8 {[%clk 0:00:28]} 35. Rxh7 {[%clk 0:00:50]}  Nd5 {[%clk 0:00:26]} 36. Rb7 {[%clk 0:00:40]}  b4 {[%clk 0:00:22]} 37. Kg2 {[%clk 0:00:32]}  a5 {[%clk 0:00:15]} 38. h4 {[%clk 0:00:33]}  Ne7 {[%clk 0:00:15]} 39. Bg7 {[%clk 0:00:29]}  Kf7 {[%clk 0:00:10]} 40. Bh8 {[%clk 0:00:25]}  Kg8 {[%clk 0:00:04]} 41. Bxf6 {[%clk 0:00:25]}  Nxf5 {[%clk 0:00:05]} 42. h5 {[%clk 0:00:25]}  Rg3+ {[%clk 0:00:04]} 43. Kf2 {[%clk 0:00:25]}  Rh3 {[%clk 0:00:03]} 44. Bxe5 {[%clk 0:00:21]}  Rxh5 {[%clk 0:00:04]} 45. Ra7 {[%clk 0:00:20]}  Nh4 {[%clk 0:00:02]} 46. Bg3 {[%clk 0:00:16]}  Rf5+ {[%clk 0:00:02]} 47. Ke2 {[%clk 0:00:15]}  Ng6 {[%clk 0:00:03]} 48. Ra6 {[%clk 0:00:14]}  Nf8 {[%clk 0:00:03]} 49. Rb6 {[%clk 0:00:14]}  Kf7 {[%clk 0:00:03]} 50. Bc7 {[%clk 0:00:13]}  Ne6 {[%clk 0:00:03]} 51. Bd6 {[%clk 0:00:12]}  Rd5 {[%clk 0:00:02]} 52. Ke3 {[%clk 0:00:10]}  Ke8 {[%clk 0:00:01]} 53. Bg3 {[%clk 0:00:10]}  Kd7 {[%clk 0:00:01]} 54. Ke4 {[%clk 0:00:08]}  Rd1 {[%clk 0:00:01]} 55. Rb5 {[%clk 0:00:07]}  Rd2 {[%clk 0:00:02]} 56. Rxa5 {[%clk 0:00:07]}  b3 {[%clk 0:00:02]} 57. Rb5 {[%clk 0:00:07]}  b2 {[%clk 0:00:03]} 58. Be5 {[%clk 0:00:07]}  Kc6 {[%clk 0:00:02]} 59. Rb8 {[%clk 0:00:05]}  Nc5+ {[%clk 0:00:03]} 60. Ke3 {[%clk 0:00:06]}  Rd5 {[%clk 0:00:03]} 61. Bxb2 {[%clk 0:00:05]}  Rd3+ {[%clk 0:00:03]} 62. Ke2 {[%clk 0:00:05]}  Rb3 {[%clk 0:00:03]} 63. Rc8+ {[%clk 0:00:05]}  Kd7 {[%clk 0:00:03]} 64. Rxc5 {[%clk 0:00:05]}  Rxb2+ {[%clk 0:00:03]} 65. Ke3 {[%clk 0:00:06]}  Rb3+ {[%clk 0:00:04]} 66. Kd2 {[%clk 0:00:07]}  Rb6 {[%clk 0:00:04]} 67. Kd3 {[%clk 0:00:06]}  Rd6+ {[%clk 0:00:05]} 68. Ke4 {[%clk 0:00:06]}  Rc6 {[%clk 0:00:05]} 69. Rh5 {[%clk 0:00:06]}  Kc7 {[%clk 0:00:06]} 70. Kd5 {[%clk 0:00:06]}  Kb6 {[%clk 0:00:06]} 71. Rh1 {[%clk 0:00:07]}  Rc5+ {[%clk 0:00:06]} 72. Kd4 {[%clk 0:00:07]}  Rc6 {[%clk 0:00:07]} 73. Rb1+ {[%clk 0:00:06]}  Kc7 {[%clk 0:00:05]} 1/2-1/2


[Site "https://www.chess.com"]

[Event "Titled Tuesday Blitz August 08 Early 2023"]
[White "Yaran, Siar"]
[Black "Rakhimgaliyev, Yerlan"]
[WhiteFideId "6323006"]
[BlackFideId "13705148"]
[WhiteElo "2646"]
[BlackElo "2456"]
[Result "1-0"]
[Round "3"]
[TimeControl "180+1"]
[Date "2023.08.08"]
[WhiteClock "0:01:31"]
[BlackClock "0:01:16"]
[Board "117"]

1. e4 {[%clk 0:03:00]}  e5 {[%clk 0:02:59]} 2. Nf3 {[%clk 0:03:00]}  d6 {[%clk 0:03:00]} 3. d4 {[%clk 0:03:00]}  exd4 {[%clk 0:03:01]} 4. Qxd4 {[%clk 0:03:00]}  Nf6 {[%clk 0:03:01]} 5. Nc3 {[%clk 0:02:59]}  Be7 {[%clk 0:03:01]} 6. b3 {[%clk 0:02:59]}  Nc6 {[%clk 0:03:02]} 7. Bb5 {[%clk 0:02:59]}  O-O {[%clk 0:03:03]} 8. Bxc6 {[%clk 0:02:59]}  bxc6 {[%clk 0:03:04]} 9. Bb2 {[%clk 0:02:58]}  Bg4 {[%clk 0:03:02]} 10. O-O-O {[%clk 0:02:57]}  Nd7 {[%clk 0:02:55]} 11. h3 {[%clk 0:02:56]}  Bxf3 {[%clk 0:02:54]} 12. gxf3 {[%clk 0:02:54]}  Bf6 {[%clk 0:02:54]} 13. Qd2 {[%clk 0:02:54]}  Bg5 {[%clk 0:02:42]} 14. f4 {[%clk 0:02:53]}  Bh6 {[%clk 0:02:42]} 15. Kb1 {[%clk 0:02:47]}  Qh4 {[%clk 0:02:41]} 16. Ne2 {[%clk 0:02:47]}  Ne5 {[%clk 0:02:40]} 17. Qe3 {[%clk 0:02:41]}  Ng6 {[%clk 0:02:39]} 18. Bc1 {[%clk 0:02:42]}  f5 {[%clk 0:02:33]} 19. exf5 {[%clk 0:02:16]}  Rxf5 {[%clk 0:02:33]} 20. Qe6+ {[%clk 0:02:16]}  Rf7 {[%clk 0:02:33]} 21. f5 {[%clk 0:02:16]}  Nf4 {[%clk 0:02:21]} 22. Bxf4 {[%clk 0:02:11]}  Bxf4 {[%clk 0:02:22]} 23. Rd4 {[%clk 0:02:11]}  Qf6 {[%clk 0:01:50]} 24. Qxf6 {[%clk 0:02:06]}  Rxf6 {[%clk 0:01:51]} 25. Rxf4 {[%clk 0:02:06]}  Re8 {[%clk 0:01:50]} 26. Nd4 {[%clk 0:02:01]}  c5 {[%clk 0:01:50]} 27. Nb5 {[%clk 0:02:01]}  c6 {[%clk 0:01:49]} 28. Nxa7 {[%clk 0:01:52]}  d5 {[%clk 0:01:49]} 29. Ra4 {[%clk 0:01:50]}  Re2 {[%clk 0:01:39]} 30. Ra6 {[%clk 0:01:48]}  Rxf5 {[%clk 0:01:37]} 31. Rxc6 {[%clk 0:01:47]}  c4 {[%clk 0:01:37]} 32. bxc4 {[%clk 0:01:47]}  dxc4 {[%clk 0:01:37]} 33. Rxc4 {[%clk 0:01:46]}  Ra5 {[%clk 0:01:37]} 34. Nc6 {[%clk 0:01:44]}  Rb5+ {[%clk 0:01:37]} 35. Nb4 {[%clk 0:01:44]}  Rxf2 {[%clk 0:01:37]} 36. Kb2 {[%clk 0:01:43]}  h5 {[%clk 0:01:36]} 37. a4 {[%clk 0:01:43]}  Ra5 {[%clk 0:01:35]} 38. Kb3 {[%clk 0:01:43]}  g5 {[%clk 0:01:33]} 39. Rd4 {[%clk 0:01:39]}  Kg7 {[%clk 0:01:31]} 40. Re1 {[%clk 0:01:36]}  Rf3+ {[%clk 0:01:29]} 41. Rd3 {[%clk 0:01:36]}  Raf5 {[%clk 0:01:24]} 42. Ree3 {[%clk 0:01:34]}  Rf1 {[%clk 0:01:22]} 43. Rd7+ {[%clk 0:01:32]}  Kf6 {[%clk 0:01:20]} 44. Nd5+ {[%clk 0:01:32]}  Kg6 {[%clk 0:01:16]} 45. Re6+ {[%clk 0:01:31]} 1-0


[Site "https://www.chess.com"]

[Event "Titled Tuesday Blitz August 08 Early 2023"]
[White "Warchol, Kamil"]
[Black "Jeet, Jain"]
[WhiteFideId "21858241"]
[BlackFideId "5073022"]
[WhiteElo "2452"]
[BlackElo "2636"]
[Result "0-1"]
[Round "3"]
[TimeControl "180+1"]
[Date "2023.08.08"]
[WhiteClock "0:00:04"]
[BlackClock "0:01:22"]
[Board "121"]

1. e4 {[%clk 0:02:45]}  c6 {[%clk 0:02:58]} 2. c4 {[%clk 0:02:44]}  d5 {[%clk 0:02:58]} 3. cxd5 {[%clk 0:02:45]}  cxd5 {[%clk 0:02:59]} 4. exd5 {[%clk 0:02:46]}  Nf6 {[%clk 0:03:00]} 5. Nc3 {[%clk 0:02:46]}  Nxd5 {[%clk 0:03:00]} 6. Nf3 {[%clk 0:02:47]}  Nc6 {[%clk 0:02:58]} 7. Bb5 {[%clk 0:02:30]}  e6 {[%clk 0:02:53]} 8. O-O {[%clk 0:02:30]}  Be7 {[%clk 0:02:51]} 9. d4 {[%clk 0:02:24]}  O-O {[%clk 0:02:50]} 10. Re1 {[%clk 0:02:25]}  Bf6 {[%clk 0:02:47]} 11. Ne4 {[%clk 0:02:17]}  a6 {[%clk 0:02:39]} 12. Bxc6 {[%clk 0:02:13]}  bxc6 {[%clk 0:02:38]} 13. Nxf6+ {[%clk 0:02:08]}  Nxf6 {[%clk 0:02:32]} 14. Qc2 {[%clk 0:02:06]}  Bb7 {[%clk 0:02:27]} 15. Bd2 {[%clk 0:02:03]}  c5 {[%clk 0:02:06]} 16. dxc5 {[%clk 0:01:46]}  Bxf3 {[%clk 0:02:05]} 17. gxf3 {[%clk 0:01:46]}  Qd5 {[%clk 0:02:06]} 18. Qc3 {[%clk 0:01:24]}  Rfd8 {[%clk 0:02:04]} 19. Bf4 {[%clk 0:01:23]}  Rac8 {[%clk 0:02:02]} 20. b4 {[%clk 0:01:10]}  Qf5 {[%clk 0:01:58]} 21. Bg3 {[%clk 0:01:06]}  Rd3 {[%clk 0:01:58]} 22. Qe5 {[%clk 0:01:02]}  Qxf3 {[%clk 0:01:57]} 23. a4 {[%clk 0:00:59]}  Rb3 {[%clk 0:01:51]} 24. Qd4 {[%clk 0:00:58]}  Nd5 {[%clk 0:01:50]} 25. Rab1 {[%clk 0:00:29]}  Rd3 {[%clk 0:01:47]} 26. Qc4 {[%clk 0:00:23]}  h5 {[%clk 0:01:44]} 27. Qxa6 {[%clk 0:00:22]}  h4 {[%clk 0:01:40]} 28. Qxc8+ {[%clk 0:00:21]}  Kh7 {[%clk 0:01:41]} 29. Qd8 {[%clk 0:00:20]}  f6 {[%clk 0:01:22]} 30. Bxh4 {[%clk 0:00:04]}  Nf4 {[%clk 0:01:22]} 0-1


[Site "https://www.chess.com"]

[Event "Titled Tuesday Blitz August 08 Early 2023"]
[White "Saya, Ethan"]
[Black "Kassimov, Baurzhan"]
[WhiteFideId "26095181"]
[BlackFideId "13704800"]
[WhiteElo "2633"]
[BlackElo "2450"]
[Result "1-0"]
[Round "3"]
[TimeControl "180+1"]
[Date "2023.08.08"]
[WhiteClock "0:00:07"]
[BlackClock "0:00:03"]
[Board "122"]

1. d4 {[%clk 0:02:58]}  Nf6 {[%clk 0:02:59]} 2. c4 {[%clk 0:02:56]}  e6 {[%clk 0:02:59]} 3. Nc3 {[%clk 0:02:56]}  d5 {[%clk 0:02:56]} 4. cxd5 {[%clk 0:02:55]}  exd5 {[%clk 0:02:53]} 5. Bg5 {[%clk 0:02:54]}  Be7 {[%clk 0:02:52]} 6. e3 {[%clk 0:02:54]}  c6 {[%clk 0:02:51]} 7. Bd3 {[%clk 0:02:54]}  Nbd7 {[%clk 0:02:51]} 8. Nge2 {[%clk 0:02:53]}  O-O {[%clk 0:02:52]} 9. Qc2 {[%clk 0:02:52]}  Re8 {[%clk 0:02:52]} 10. O-O {[%clk 0:02:49]}  h6 {[%clk 0:02:47]} 11. Bh4 {[%clk 0:02:48]}  Ne4 {[%clk 0:02:43]} 12. Bxe7 {[%clk 0:02:42]}  Qxe7 {[%clk 0:02:44]} 13. Rae1 {[%clk 0:02:22]}  Ndf6 {[%clk 0:02:31]} 14. f3 {[%clk 0:02:18]}  Nxc3 {[%clk 0:02:30]} 15. Nxc3 {[%clk 0:02:18]}  c5 {[%clk 0:02:22]} 16. dxc5 {[%clk 0:01:54]}  Qxc5 {[%clk 0:02:18]} 17. Nb5 {[%clk 0:01:53]}  Qxc2 {[%clk 0:02:09]} 18. Bxc2 {[%clk 0:01:54]}  Rd8 {[%clk 0:02:10]} 19. Bb3 {[%clk 0:01:42]}  a6 {[%clk 0:02:03]} 20. Nc7 {[%clk 0:01:11]}  Rb8 {[%clk 0:01:58]} 21. Rd1 {[%clk 0:01:10]}  Be6 {[%clk 0:01:59]} 22. Nxe6 {[%clk 0:00:58]}  fxe6 {[%clk 0:01:59]} 23. e4 {[%clk 0:00:52]}  Kf8 {[%clk 0:01:58]} 24. exd5 {[%clk 0:00:46]}  exd5 {[%clk 0:01:53]} 25. Rd4 {[%clk 0:00:41]}  Rd6 {[%clk 0:01:46]} 26. Rc1 {[%clk 0:00:39]}  Rbd8 {[%clk 0:01:33]} 27. Kf2 {[%clk 0:00:37]}  Rc6 {[%clk 0:01:17]} 28. Rcd1 {[%clk 0:00:24]}  Ke7 {[%clk 0:01:06]} 29. g4 {[%clk 0:00:20]}  g5 {[%clk 0:01:05]} 30. Kg3 {[%clk 0:00:20]}  Kf8 {[%clk 0:01:01]} 31. Rh1 {[%clk 0:00:20]}  Kg7 {[%clk 0:01:01]} 32. h4 {[%clk 0:00:18]}  Re8 {[%clk 0:00:53]} 33. hxg5 {[%clk 0:00:17]}  hxg5 {[%clk 0:00:54]} 34. Rh2 {[%clk 0:00:17]}  Re3 {[%clk 0:00:53]} 35. Bxd5 {[%clk 0:00:14]}  Rd6 {[%clk 0:00:20]} 36. Rhd2 {[%clk 0:00:14]}  b6 {[%clk 0:00:21]} 37. Kf2 {[%clk 0:00:13]}  Re5 {[%clk 0:00:18]} 38. Bc4 {[%clk 0:00:12]}  Rxd4 {[%clk 0:00:17]} 39. Rxd4 {[%clk 0:00:13]}  b5 {[%clk 0:00:17]} 40. Bd3 {[%clk 0:00:11]}  Nd5 {[%clk 0:00:12]} 41. Bf5 {[%clk 0:00:09]}  Nf4 {[%clk 0:00:12]} 42. Rd2 {[%clk 0:00:07]}  a5 {[%clk 0:00:11]} 43. Bd3 {[%clk 0:00:07]}  a4 {[%clk 0:00:05]} 44. Bf1 {[%clk 0:00:06]}  Kf6 {[%clk 0:00:05]} 45. Rd6+ {[%clk 0:00:06]}  Ke7 {[%clk 0:00:05]} 46. Rb6 {[%clk 0:00:06]}  Rc5 {[%clk 0:00:05]} 47. Rxb5 {[%clk 0:00:04]}  Rc2+ {[%clk 0:00:05]} 48. Ke3 {[%clk 0:00:05]}  Rc1 {[%clk 0:00:06]} 49. Bd3 {[%clk 0:00:03]}  Re1+ {[%clk 0:00:05]} 50. Kd2 {[%clk 0:00:04]}  Ra1 {[%clk 0:00:04]} 51. a3 {[%clk 0:00:04]}  Rg1 {[%clk 0:00:04]} 52. Be4 {[%clk 0:00:04]}  Rg2+ {[%clk 0:00:04]} 53. Ke3 {[%clk 0:00:05]}  Rg1 {[%clk 0:00:03]} 54. Kd4 {[%clk 0:00:05]}  Rd1+ {[%clk 0:00:03]} 55. Kc5 {[%clk 0:00:05]}  Nd3+ {[%clk 0:00:02]} 56. Bxd3 {[%clk 0:00:05]}  Rxd3 {[%clk 0:00:03]} 57. Kb6 {[%clk 0:00:04]}  Rxf3 {[%clk 0:00:02]} 58. Rxg5 {[%clk 0:00:05]}  Rb3+ {[%clk 0:00:02]} 59. Rb5 {[%clk 0:00:05]}  Rg3 {[%clk 0:00:03]} 60. Rb4 {[%clk 0:00:05]}  Kd6 {[%clk 0:00:04]} 61. Rxa4 {[%clk 0:00:04]}  Rf3 {[%clk 0:00:04]} 62. Rb4 {[%clk 0:00:04]}  Rf8 {[%clk 0:00:05]} 63. Kb5 {[%clk 0:00:04]}  Kd5 {[%clk 0:00:06]} 64. Ka4 {[%clk 0:00:05]}  Ra8+ {[%clk 0:00:06]} 65. Kb3 {[%clk 0:00:05]}  Rc8 {[%clk 0:00:06]} 66. Rb5+ {[%clk 0:00:05]}  Kc6 {[%clk 0:00:06]} 67. Rb4 {[%clk 0:00:06]}  Rf8 {[%clk 0:00:06]} 68. Rc4+ {[%clk 0:00:06]}  Kb5 {[%clk 0:00:03]} 69. Rb4+ {[%clk 0:00:07]} 1-0


[Site "https://www.chess.com"]

[Event "Titled Tuesday Blitz August 08 Early 2023"]
[White "Tologon tegin, Semetei"]
[Black "Mrudul Dehankar"]
[WhiteFideId "13800574"]
[BlackFideId "25096990"]
[WhiteElo "2632"]
[BlackElo "2448"]
[Result "1-0"]
[Round "3"]
[TimeControl "180+1"]
[Date "2023.08.08"]
[WhiteClock "0:00:14"]
[BlackClock "0:00:00"]
[Board "124"]

1. e4 {[%clk 0:02:55]}  c6 {[%clk 0:02:56]} 2. d4 {[%clk 0:02:54]}  d5 {[%clk 0:02:51]} 3. e5 {[%clk 0:02:54]}  Bf5 {[%clk 0:02:50]} 4. c4 {[%clk 0:02:41]}  e6 {[%clk 0:02:42]} 5. Nc3 {[%clk 0:02:41]}  Bb4 {[%clk 0:02:33]} 6. cxd5 {[%clk 0:02:36]}  cxd5 {[%clk 0:01:26]} 7. Bd3 {[%clk 0:02:33]}  Ne7 {[%clk 0:01:21]} 8. Ne2 {[%clk 0:02:15]}  Nbc6 {[%clk 0:01:19]} 9. O-O {[%clk 0:02:15]}  O-O {[%clk 0:01:09]} 10. Be3 {[%clk 0:02:04]}  a6 {[%clk 0:01:03]} 11. Rc1 {[%clk 0:01:59]}  Ba5 {[%clk 0:00:47]} 12. Ng3 {[%clk 0:01:56]}  Bg6 {[%clk 0:00:15]} 13. f4 {[%clk 0:01:53]}  f6 {[%clk 0:00:14]} 14. Bxg6 {[%clk 0:01:25]}  Nxg6 {[%clk 0:00:12]} 15. exf6 {[%clk 0:01:05]}  Qxf6 {[%clk 0:00:10]} 16. f5 {[%clk 0:01:02]}  Nge7 {[%clk 0:00:07]} 17. fxe6 {[%clk 0:00:42]}  Qxe6 {[%clk 0:00:06]} 18. Qd2 {[%clk 0:00:41]}  Bb6 {[%clk 0:00:04]} 19. Rce1 {[%clk 0:00:33]}  Qg6 {[%clk 0:00:04]} 20. Kh1 {[%clk 0:00:31]}  Bc7 {[%clk 0:00:03]} 21. Nce2 {[%clk 0:00:27]}  Nf5 {[%clk 0:00:02]} 22. Bf4 {[%clk 0:00:23]}  Nxg3+ {[%clk 0:00:02]} 23. Nxg3 {[%clk 0:00:21]}  Bxf4 {[%clk 0:00:01]} 24. Rxf4 {[%clk 0:00:22]}  Rxf4 {[%clk 0:00:01]} 25. Qxf4 {[%clk 0:00:23]}  Rf8 {[%clk 0:00:02]} 26. Qd2 {[%clk 0:00:20]}  Qf6 {[%clk 0:00:02]} 27. Rd1 {[%clk 0:00:16]}  Re8 {[%clk 0:00:02]} 28. h3 {[%clk 0:00:15]}  Qd6 {[%clk 0:00:02]} 29. Ne2 {[%clk 0:00:14]}  Qf6 {[%clk 0:00:01]} 30. Nc3 {[%clk 0:00:14]}  Qf7 {[%clk 0:00:01]} 31. Qd3 {[%clk 0:00:14]}  Re7 {[%clk 0:00:00]} 32. Rf1 {[%clk 0:00:14]} 1-0


[Site "https://www.chess.com"]

[Event "Titled Tuesday Blitz August 08 Early 2023"]
[White "Iljin, Timofey"]
[Black "Popilski, Gil"]
[WhiteFideId "14110180"]
[BlackFideId "2809060"]
[WhiteElo "2447"]
[BlackElo "2632"]
[Result "1-0"]
[Round "3"]
[TimeControl "180+1"]
[Date "2023.08.08"]
[WhiteClock "0:00:09"]
[BlackClock "0:00:10"]
[Board "125"]

1. e4 {[%clk 0:03:00]}  c5 {[%clk 0:02:54]} 2. c3 {[%clk 0:03:00]}  d5 {[%clk 0:02:48]} 3. exd5 {[%clk 0:03:01]}  Qxd5 {[%clk 0:02:28]} 4. d4 {[%clk 0:03:01]}  Nf6 {[%clk 0:02:16]} 5. Nf3 {[%clk 0:03:01]}  g6 {[%clk 0:01:35]} 6. h3 {[%clk 0:03:00]}  Bg7 {[%clk 0:01:31]} 7. Be2 {[%clk 0:03:00]}  O-O {[%clk 0:01:30]} 8. O-O {[%clk 0:03:01]}  cxd4 {[%clk 0:01:30]} 9. cxd4 {[%clk 0:03:01]}  Nc6 {[%clk 0:01:19]} 10. Nc3 {[%clk 0:03:01]}  Qd6 {[%clk 0:01:16]} 11. a3 {[%clk 0:02:58]}  Rd8 {[%clk 0:01:11]} 12. Be3 {[%clk 0:02:54]}  Nd5 {[%clk 0:01:04]} 13. Rc1 {[%clk 0:02:50]}  Nxe3 {[%clk 0:01:03]} 14. fxe3 {[%clk 0:02:50]}  Bh6 {[%clk 0:01:04]} 15. Qd3 {[%clk 0:02:29]}  Bf5 {[%clk 0:01:03]} 16. Qd2 {[%clk 0:02:15]}  e5 {[%clk 0:00:51]} 17. d5 {[%clk 0:01:57]}  e4 {[%clk 0:00:51]} 18. Nd4 {[%clk 0:01:26]}  Nxd4 {[%clk 0:00:49]} 19. Qxd4 {[%clk 0:01:26]}  Qg3 {[%clk 0:00:49]} 20. Nd1 {[%clk 0:01:18]}  Bxh3 {[%clk 0:00:41]} 21. Rf2 {[%clk 0:01:13]}  Bf5 {[%clk 0:00:39]} 22. Kh1 {[%clk 0:00:40]}  Bg7 {[%clk 0:00:38]} 23. Qd2 {[%clk 0:00:38]}  Be5 {[%clk 0:00:38]} 24. Rf4 {[%clk 0:00:32]}  Bxf4 {[%clk 0:00:32]} 25. exf4 {[%clk 0:00:33]}  Bg4 {[%clk 0:00:30]} 26. Bxg4 {[%clk 0:00:22]}  Qxg4 {[%clk 0:00:31]} 27. Ne3 {[%clk 0:00:22]}  Qxf4 {[%clk 0:00:30]} 28. Rf1 {[%clk 0:00:22]}  Qh6+ {[%clk 0:00:30]} 29. Kg1 {[%clk 0:00:23]}  Rac8 {[%clk 0:00:26]} 30. Qd4 {[%clk 0:00:22]}  Qg7 {[%clk 0:00:26]} 31. Qxa7 {[%clk 0:00:19]}  Qxb2 {[%clk 0:00:25]} 32. Ng4 {[%clk 0:00:18]}  Rc2 {[%clk 0:00:21]} 33. Nh6+ {[%clk 0:00:11]}  Kg7 {[%clk 0:00:20]} 34. Rxf7+ {[%clk 0:00:11]}  Kxh6 {[%clk 0:00:18]} 35. Qe3+ {[%clk 0:00:11]}  Kh5 {[%clk 0:00:11]} 36. Qh3+ {[%clk 0:00:09]}  Kg5 {[%clk 0:00:11]} 37. Qg3+ {[%clk 0:00:09]}  Kh5 {[%clk 0:00:10]} 38. Rxh7# {[%clk 0:00:09]} 1-0


[Site "https://www.chess.com"]

[Event "Titled Tuesday Blitz August 08 Early 2023"]
[White "Karas, Marek"]
[Black "Zarubitski, Viachaslau"]
[WhiteFideId "14928558"]
[BlackFideId "13509373"]
[WhiteElo "2444"]
[BlackElo "2626"]
[Result "1/2-1/2"]
[Round "3"]
[TimeControl "180+1"]
[Date "2023.08.08"]
[WhiteClock "0:01:06"]
[BlackClock "0:00:22"]
[Board "127"]

1. d4 {[%clk 0:03:00]}  Nf6 {[%clk 0:02:57]} 2. Nf3 {[%clk 0:03:00]}  d5 {[%clk 0:02:56]} 3. c4 {[%clk 0:02:59]}  c6 {[%clk 0:02:57]} 4. g3 {[%clk 0:02:59]}  g6 {[%clk 0:02:54]} 5. cxd5 {[%clk 0:02:58]}  Nxd5 {[%clk 0:02:52]} 6. Bg2 {[%clk 0:02:59]}  Bg7 {[%clk 0:02:51]} 7. O-O {[%clk 0:02:59]}  O-O {[%clk 0:02:51]} 8. e4 {[%clk 0:02:58]}  Nf6 {[%clk 0:02:50]} 9. Nc3 {[%clk 0:02:56]}  Bg4 {[%clk 0:02:50]} 10. Be3 {[%clk 0:02:53]}  e6 {[%clk 0:02:47]} 11. h3 {[%clk 0:02:52]}  Bxf3 {[%clk 0:02:46]} 12. Bxf3 {[%clk 0:02:53]}  Nbd7 {[%clk 0:02:46]} 13. Bg2 {[%clk 0:02:48]}  e5 {[%clk 0:02:24]} 14. d5 {[%clk 0:02:41]}  cxd5 {[%clk 0:02:23]} 15. Nxd5 {[%clk 0:02:42]}  Nxd5 {[%clk 0:02:22]} 16. Qxd5 {[%clk 0:02:42]}  Nb6 {[%clk 0:01:59]} 17. Qxd8 {[%clk 0:02:36]}  Rfxd8 {[%clk 0:01:59]} 18. b3 {[%clk 0:02:29]}  Bf8 {[%clk 0:01:50]} 19. Rfd1 {[%clk 0:02:20]}  Ba3 {[%clk 0:01:43]} 20. Bf3 {[%clk 0:02:16]}  Kg7 {[%clk 0:01:39]} 21. Rxd8 {[%clk 0:02:13]}  Rxd8 {[%clk 0:01:38]} 22. Rd1 {[%clk 0:02:13]}  Rxd1+ {[%clk 0:01:36]} 23. Bxd1 {[%clk 0:02:14]}  Nc8 {[%clk 0:01:36]} 24. Be2 {[%clk 0:02:05]}  b6 {[%clk 0:01:36]} 25. Kf1 {[%clk 0:02:03]}  Nd6 {[%clk 0:01:36]} 26. Bd3 {[%clk 0:02:02]}  Bc5 {[%clk 0:01:31]} 27. Bd2 {[%clk 0:01:54]}  Kf6 {[%clk 0:01:26]} 28. Ke2 {[%clk 0:01:53]}  Ke6 {[%clk 0:01:24]} 29. a4 {[%clk 0:01:47]}  a5 {[%clk 0:01:21]} 30. Bc4+ {[%clk 0:01:44]}  Nxc4 {[%clk 0:01:16]} 31. bxc4 {[%clk 0:01:44]}  Bd4 {[%clk 0:01:16]} 32. Bc1 {[%clk 0:01:40]}  Kd6 {[%clk 0:01:13]} 33. Ba3+ {[%clk 0:01:39]}  Bc5 {[%clk 0:01:13]} 34. Bb2 {[%clk 0:01:39]}  f6 {[%clk 0:01:14]} 35. f3 {[%clk 0:01:39]}  Bb4 {[%clk 0:01:11]} 36. Kd3 {[%clk 0:01:36]}  h5 {[%clk 0:01:05]} 37. g4 {[%clk 0:01:36]}  hxg4 {[%clk 0:00:58]} 38. hxg4 {[%clk 0:01:37]}  g5 {[%clk 0:00:56]} 39. Bc1 {[%clk 0:01:36]}  Bc5 {[%clk 0:00:55]} 40. Bd2 {[%clk 0:01:36]}  Bd4 {[%clk 0:00:55]} 41. Bc1 {[%clk 0:01:35]}  Bc5 {[%clk 0:00:53]} 42. Bd2 {[%clk 0:01:35]}  Bb4 {[%clk 0:00:46]} 43. Be3 {[%clk 0:01:34]}  Kc6 {[%clk 0:00:46]} 44. Bf2 {[%clk 0:01:31]}  Bc5 {[%clk 0:00:44]} 45. Be1 {[%clk 0:01:31]}  Bd4 {[%clk 0:00:45]} 46. Bd2 {[%clk 0:01:29]}  Kc5 {[%clk 0:00:44]} 47. Be1 {[%clk 0:01:29]}  Bg1 {[%clk 0:00:43]} 48. Bd2 {[%clk 0:01:29]}  Bf2 {[%clk 0:00:43]} 49. Bc3 {[%clk 0:01:28]}  Bd4 {[%clk 0:00:37]} 50. Bd2 {[%clk 0:01:28]}  Bb2 {[%clk 0:00:33]} 51. Be1 {[%clk 0:01:27]}  Ba3 {[%clk 0:00:33]} 52. Bd2 {[%clk 0:01:22]}  Bb4 {[%clk 0:00:30]} 53. Be3+ {[%clk 0:01:11]}  Kc6 {[%clk 0:00:30]} 54. Bf2 {[%clk 0:01:10]}  Bc5 {[%clk 0:00:23]} 55. Be1 {[%clk 0:01:09]}  Bb4 {[%clk 0:00:22]} 56. Bf2 {[%clk 0:01:06]} 1/2-1/2


[Site "https://www.chess.com"]